[Event "Early-Titled-Tuesday-Blitz-May-28-2024"]
[Site "Chess.com"]
[Date "2024.05.28"]
[Round "7"]
[White "andrzej"]
[Black "Karttunen"]
[Result "0-1"]
[WhiteElo "2494"]
[BlackElo "2648"]
[TimeControl "180+1"]
[EndTime "9:19:23 PDT"]
[Termination "Karttunen won by checkmate"]

1. e4 {[%clk 0:03:00.9]} 1... c6 {[%clk 0:02:59.4]} 2. d4 {[%clk 0:03:00.6]}
2... d5 {[%clk 0:02:59.7]} 3. e5 {[%clk 0:03:01.1]} 3... Bf5 {[%clk 0:02:59.5]}
4. h4 {[%clk 0:03:01.5]} 4... h5 {[%clk 0:02:59.1]} 5. Bd3 {[%clk 0:03:01.7]}
5... Bxd3 {[%clk 0:02:58.7]} 6. Qxd3 {[%clk 0:03:02.5]} 6... e6 {[%clk 0:02:59]}
7. Nf3 {[%clk 0:03:03]} 7... Qa5+ {[%clk 0:02:58.7]} 8. Nbd2 {[%clk 0:03:03.4]}
8... Qa6 {[%clk 0:02:58.4]} 9. c4 {[%clk 0:03:03.3]} 9... Ne7 {[%clk 0:02:58.2]}
10. O-O {[%clk 0:03:01.7]} 10... Nf5 {[%clk 0:02:56.2]} 11. b3 {[%clk 0:03:02]}
11... Nd7 {[%clk 0:02:50.5]} 12. a4 {[%clk 0:02:58.9]} 12... Be7 {[%clk
0:02:44.1]} 13. Ba3 {[%clk 0:02:58.1]} 13... Nf8 {[%clk 0:02:20.3]} 14. Bxe7
{[%clk 0:02:45.2]} 14... Kxe7 {[%clk 0:02:18.4]} 15. b4 {[%clk 0:02:38.3]} 15...
dxc4 {[%clk 0:02:10.4]} 16. Nxc4 {[%clk 0:02:34.6]} 16... Nd7 {[%clk 0:01:51.9]}
17. Rfb1 {[%clk 0:02:25.6]} 17... b5 {[%clk 0:01:48.4]} 18. Na5 {[%clk
0:02:03.6]} 18... Rhc8 {[%clk 0:01:38.9]} 19. Rc1 {[%clk 0:02:02.2]} 19... Ke8
{[%clk 0:01:25.4]} 20. Ng5 {[%clk 0:01:56.5]} 20... Qb6 {[%clk 0:01:19]} 21. Qf3
{[%clk 0:01:34.2]} 21... Qxd4 {[%clk 0:00:59.5]} 22. Rd1 {[%clk 0:01:23.3]}
22... Nxe5 {[%clk 0:00:22.2]} 23. Qxh5 {[%clk 0:01:15.6]} 23... Qxh4 {[%clk
0:00:20.5]} 24. Qe2 {[%clk 0:00:46.1]} 24... Ng4 {[%clk 0:00:16]} 25. Nf3 {[%clk
0:00:46]} 25... Qf6 {[%clk 0:00:15]} 26. Rac1 {[%clk 0:00:31.3]} 26... Kf8
{[%clk 0:00:13.8]} 27. Nxc6 {[%clk 0:00:22.2]} 27... bxa4 {[%clk 0:00:13.1]} 28.
b5 {[%clk 0:00:22.2]} 28... a3 {[%clk 0:00:12.5]} 29. Qa2 {[%clk 0:00:21.1]}
29... Qb2 {[%clk 0:00:11.8]} 30. Ra1 {[%clk 0:00:19.3]} 30... Nxf2 {[%clk
0:00:09.8]} 31. Rf1 {[%clk 0:00:14.1]} 31... Nd3 {[%clk 0:00:07.8]} 32. Qxa3+
{[%clk 0:00:12.9]} 32... Qxa3 {[%clk 0:00:08.1]} 33. Rxa3 {[%clk 0:00:13.8]}
33... Nc5 {[%clk 0:00:07.8]} 34. Rc3 {[%clk 0:00:13.7]} 34... Nd7 {[%clk
0:00:07.3]} 35. Ng5 {[%clk 0:00:12.7]} 35... Kg8 {[%clk 0:00:05.4]} 36. g4
{[%clk 0:00:11.7]} 36... Nh6 {[%clk 0:00:05.6]} 37. Ne4 {[%clk 0:00:10.7]} 37...
Nb6 {[%clk 0:00:05.2]} 38. g5 {[%clk 0:00:10.1]} 38... Nf5 {[%clk 0:00:04.1]}
39. g6 {[%clk 0:00:10.4]} 39... fxg6 {[%clk 0:00:04.1]} 40. Ng5 {[%clk
0:00:10.2]} 40... Nd5 {[%clk 0:00:04.4]} 41. Rh3 {[%clk 0:00:09.5]} 41... Re8
{[%clk 0:00:04.6]} 42. Re1 {[%clk 0:00:06.5]} 42... a6 {[%clk 0:00:04.9]} 43.
Ne5 {[%clk 0:00:05.7]} 43... axb5 {[%clk 0:00:04.8]} 44. Nxg6 {[%clk 0:00:06.2]}
44... Nh6 {[%clk 0:00:05.1]} 45. Nxe6 {[%clk 0:00:03.2]} 45... Ra6 {[%clk
0:00:05.2]} 46. Rhe3 {[%clk 0:00:01.1]} 46... Nxe3 {[%clk 0:00:05]} 47. Rxe3
{[%clk 0:00:02]} 47... Raxe6 {[%clk 0:00:05.1]} 48. Rb3 {[%clk 0:00:01.5]} 48...
Rxg6+ {[%clk 0:00:05.3]} 49. Kf2 {[%clk 0:00:01.6]} 49... Rb6 {[%clk 0:00:06.2]}
50. Kf3 {[%clk 0:00:01.4]} 50... Nf7 {[%clk 0:00:06.6]} 51. Kg3 {[%clk
0:00:02.3]} 51... Nd6 {[%clk 0:00:07.2]} 52. Kg2 {[%clk 0:00:03.2]} 52... Ne4
{[%clk 0:00:07.8]} 53. Rb1 {[%clk 0:00:04.1]} 53... Nc5 {[%clk 0:00:08.3]} 54.
Kg1 {[%clk 0:00:04.6]} 54... Nd3 {[%clk 0:00:08.7]} 55. Kg2 {[%clk 0:00:05.5]}
55... b4 {[%clk 0:00:09.3]} 56. Kg1 {[%clk 0:00:06]} 56... b3 {[%clk 0:00:09.9]}
57. Kg2 {[%clk 0:00:06.5]} 57... b2 {[%clk 0:00:10.5]} 58. Kh3 {[%clk
0:00:07.4]} 58... Nc5 {[%clk 0:00:10.9]} 59. Kg4 {[%clk 0:00:07.7]} 59... Na4
{[%clk 0:00:11.4]} 60. Kf5 {[%clk 0:00:07.6]} 60... Nc3 {[%clk 0:00:11.9]} 61.
Rh1 {[%clk 0:00:06.4]} 61... b1=Q+ {[%clk 0:00:11.9]} 62. Rxb1 {[%clk
0:00:06.9]} 62... Nxb1 {[%clk 0:00:12]} 63. Kg5 {[%clk 0:00:07.8]} 63... Na3
{[%clk 0:00:12.3]} 64. Kh5 {[%clk 0:00:08.7]} 64... Nb5 {[%clk 0:00:12.7]} 65.
Kg5 {[%clk 0:00:09.6]} 65... Rf6 {[%clk 0:00:12.9]} 66. Kh4 {[%clk 0:00:10.5]}
66... Re5 {[%clk 0:00:12.8]} 67. Kg4 {[%clk 0:00:10.7]} 67... Nd6 {[%clk
0:00:13.1]} 68. Kh4 {[%clk 0:00:10.8]} 68... Nf7 {[%clk 0:00:13]} 69. Kg4 {[%clk
0:00:11.7]} 69... Rg5+ {[%clk 0:00:13.3]} 70. Kh4 {[%clk 0:00:12.6]} 70... Rh6#
{[%clk 0:00:13.9]} 0-1

[Event "Early-Titled-Tuesday-Blitz-May-28-2024"]
[Site "Chess.com"]
[Date "2024.05.28"]
[Round "7"]
[White "Willi_Skibbe"]
[Black "MikeSailer"]
[Result "0-1"]
[WhiteElo "2248"]
[BlackElo "2075"]
[TimeControl "180+1"]
[EndTime "9:19:33 PDT"]
[Termination "MikeSailer won on time"]

1. d4 {[%clk 0:02:56.9]} 1... d5 {[%clk 0:02:58.5]} 2. Nf3 {[%clk 0:02:52.4]}
2... Nf6 {[%clk 0:02:58.4]} 3. e3 {[%clk 0:02:49.9]} 3... Bf5 {[%clk 0:02:56.7]}
4. Bd3 {[%clk 0:02:45.9]} 4... Bxd3 {[%clk 0:02:56.7]} 5. Qxd3 {[%clk 0:02:45]}
5... c6 {[%clk 0:02:53.5]} 6. Nbd2 {[%clk 0:02:44]} 6... g6 {[%clk 0:02:51]} 7.
e4 {[%clk 0:02:42.8]} 7... dxe4 {[%clk 0:02:51.1]} 8. Nxe4 {[%clk 0:02:43.7]}
8... Nxe4 {[%clk 0:02:51.7]} 9. Qxe4 {[%clk 0:02:42.6]} 9... Bg7 {[%clk
0:02:52.4]} 10. Bg5 {[%clk 0:02:40]} 10... Nd7 {[%clk 0:02:49.8]} 11. O-O-O
{[%clk 0:02:37.9]} 11... Nf6 {[%clk 0:02:49.8]} 12. Bxf6 {[%clk 0:02:36.1]}
12... Bxf6 {[%clk 0:02:47.9]} 13. h4 {[%clk 0:02:27.6]} 13... h5 {[%clk
0:02:39.7]} 14. Kb1 {[%clk 0:02:25.6]} 14... Qd5 {[%clk 0:02:38.2]} 15. Qe2
{[%clk 0:02:18.7]} 15... O-O-O {[%clk 0:02:34.1]} 16. c3 {[%clk 0:01:51.8]}
16... Rhe8 {[%clk 0:02:21.3]} 17. Rhe1 {[%clk 0:01:48.7]} 17... e6 {[%clk
0:02:18.9]} 18. g3 {[%clk 0:01:45.6]} 18... Kb8 {[%clk 0:02:18.9]} 19. Ne5
{[%clk 0:01:02.5]} 19... Bxe5 {[%clk 0:02:16.9]} 20. Qxe5+ {[%clk 0:01:01.7]}
20... Qxe5 {[%clk 0:02:16.5]} 21. dxe5 {[%clk 0:01:01.6]} 21... Kc7 {[%clk
0:02:10]} 22. Kc2 {[%clk 0:00:54.7]} 22... b5 {[%clk 0:02:04.7]} 23. b3 {[%clk
0:00:49.7]} 23... Rd5 {[%clk 0:01:36.8]} 24. c4 {[%clk 0:00:49.2]} 24... bxc4
{[%clk 0:01:36.5]} 25. bxc4 {[%clk 0:00:50.1]} 25... Rxd1 {[%clk 0:01:27.6]} 26.
Rxd1 {[%clk 0:00:51]} 26... Rb8 {[%clk 0:01:26.5]} 27. Kc3 {[%clk 0:00:46.6]}
27... Rb6 {[%clk 0:01:25.2]} 28. a4 {[%clk 0:00:39.1]} 28... a5 {[%clk
0:01:23.3]} 29. Rd3 {[%clk 0:00:31]} 29... Rb7 {[%clk 0:01:20.2]} 30. Rf3 {[%clk
0:00:28.3]} 30... Kb6 {[%clk 0:01:16.6]} 31. Kd4 {[%clk 0:00:20.5]} 31... Rd7+
{[%clk 0:01:16.2]} 32. Kc3 {[%clk 0:00:14.9]} 32... Kc5 {[%clk 0:01:09.6]} 33.
Rf4 {[%clk 0:00:14.7]} 33... Rb7 {[%clk 0:01:00.2]} 34. f3 {[%clk 0:00:13.1]}
34... Rd7 {[%clk 0:00:37.2]} 35. g4 {[%clk 0:00:12.6]} 35... Rb7 {[%clk
0:00:30.3]} 36. gxh5 {[%clk 0:00:12.2]} 36... gxh5 {[%clk 0:00:30.6]} 37. Rf6
{[%clk 0:00:12.8]} 37... Rb4 {[%clk 0:00:29.4]} 38. Rxf7 {[%clk 0:00:12.8]}
38... Rxc4+ {[%clk 0:00:29]} 39. Kb3 {[%clk 0:00:12.7]} 39... Rb4+ {[%clk
0:00:28]} 40. Ka3 {[%clk 0:00:12.5]} 40... Rxh4 {[%clk 0:00:26.5]} 41. f4 {[%clk
0:00:12.6]} 41... Rh3+ {[%clk 0:00:25.4]} 42. Kb2 {[%clk 0:00:11.8]} 42... Rf3
{[%clk 0:00:16.1]} 43. Rf6 {[%clk 0:00:10.9]} 43... h4 {[%clk 0:00:15.9]} 44.
Rxe6 {[%clk 0:00:10.7]} 44... Rxf4 {[%clk 0:00:16.3]} 45. Kb3 {[%clk 0:00:08.5]}
45... Rf3+ {[%clk 0:00:16.5]} 46. Kb2 {[%clk 0:00:08.5]} 46... h3 {[%clk
0:00:17.2]} 47. Rh6 {[%clk 0:00:08.5]} 47... Kd5 {[%clk 0:00:12.3]} 48. e6
{[%clk 0:00:05.1]} 48... Rf2+ {[%clk 0:00:12.4]} 49. Kc3 {[%clk 0:00:03.7]}
49... Re2 {[%clk 0:00:07.1]} 50. Rxh3 {[%clk 0:00:02]} 50... Rxe6 {[%clk
0:00:06.4]} 51. Rh5+ {[%clk 0:00:02.3]} 51... Re5 {[%clk 0:00:06.8]} 52. Rh6
{[%clk 0:00:02.6]} 52... Re3+ {[%clk 0:00:06.7]} 53. Kb2 {[%clk 0:00:02.4]}
53... Kc5 {[%clk 0:00:07.1]} 54. Rh5+ {[%clk 0:00:02.4]} 54... Kb4 {[%clk
0:00:07.4]} 55. Rh4+ {[%clk 0:00:03.1]} 55... Kc5 {[%clk 0:00:06.9]} 56. Rh5+
{[%clk 0:00:04]} 56... Kc4 {[%clk 0:00:06.2]} 57. Rh4+ {[%clk 0:00:03.9]} 57...
Kd5 {[%clk 0:00:06.1]} 58. Rh5+ {[%clk 0:00:04]} 58... Re5 {[%clk 0:00:06.4]}
59. Rh4 {[%clk 0:00:03.9]} 59... c5 {[%clk 0:00:06.6]} 60. Kc3 {[%clk
0:00:03.2]} 60... Re3+ {[%clk 0:00:06.7]} 61. Kc2 {[%clk 0:00:03.5]} 61... Re4
{[%clk 0:00:06.7]} 0-1

[Event "Early-Titled-Tuesday-Blitz-May-28-2024"]
[Site "Chess.com"]
[Date "2024.05.28"]
[Round "7"]
[White "RianKapriaga"]
[Black "Fh2411"]
[Result "0-1"]
[WhiteElo "2322"]
[BlackElo "2549"]
[TimeControl "180+1"]
[EndTime "9:19:35 PDT"]
[Termination "Fh2411 won on time"]

1. d4 {[%clk 0:03:00.9]} 1... d5 {[%clk 0:02:59.5]} 2. Bf4 {[%clk 0:02:59.3]}
2... c5 {[%clk 0:02:53.2]} 3. e3 {[%clk 0:02:58.9]} 3... Nc6 {[%clk 0:02:53]} 4.
c3 {[%clk 0:02:55]} 4... cxd4 {[%clk 0:02:43.7]} 5. exd4 {[%clk 0:02:53.8]} 5...
Nf6 {[%clk 0:02:44.1]} 6. Nd2 {[%clk 0:02:53.9]} 6... Bf5 {[%clk 0:02:35.8]} 7.
Ngf3 {[%clk 0:02:52.7]} 7... e6 {[%clk 0:02:34.5]} 8. Qb3 {[%clk 0:02:52.5]}
8... Qc8 {[%clk 0:02:34.3]} 9. Bb5 {[%clk 0:02:45.6]} 9... Be7 {[%clk 0:02:28]}
10. h3 {[%clk 0:02:45]} 10... O-O {[%clk 0:02:27.4]} 11. O-O {[%clk 0:02:45.4]}
11... a6 {[%clk 0:02:11.8]} 12. Be2 {[%clk 0:02:35.4]} 12... b5 {[%clk 0:02:10]}
13. Rfe1 {[%clk 0:02:25.8]} 13... Na5 {[%clk 0:01:56]} 14. Qd1 {[%clk
0:02:22.7]} 14... Nc4 {[%clk 0:01:55.2]} 15. Nxc4 {[%clk 0:01:59.2]} 15... bxc4
{[%clk 0:01:48.8]} 16. Nh4 {[%clk 0:01:49.4]} 16... Bg6 {[%clk 0:01:45.5]} 17.
Nxg6 {[%clk 0:01:48.8]} 17... hxg6 {[%clk 0:01:46.4]} 18. b3 {[%clk 0:01:40.1]}
18... Qc6 {[%clk 0:01:07.2]} 19. Rb1 {[%clk 0:01:05.8]} 19... cxb3 {[%clk
0:00:54.1]} 20. Qxb3 {[%clk 0:01:02.1]} 20... Rfc8 {[%clk 0:00:44.3]} 21. Qb7
{[%clk 0:00:53.6]} 21... Bf8 {[%clk 0:00:35.7]} 22. Rec1 {[%clk 0:00:47.7]}
22... Ne4 {[%clk 0:00:31.5]} 23. c4 {[%clk 0:00:43.2]} 23... Ba3 {[%clk
0:00:26]} 24. Qxc6 {[%clk 0:00:36.2]} 24... Rxc6 {[%clk 0:00:25.2]} 25. cxd5
{[%clk 0:00:36.2]} 25... Bxc1 {[%clk 0:00:18.9]} 26. dxc6 {[%clk 0:00:26.6]}
26... Bxf4 {[%clk 0:00:18.3]} 27. g3 {[%clk 0:00:24.1]} 27... Bc7 {[%clk
0:00:17.2]} 28. Rb7 {[%clk 0:00:22.8]} 28... Bd6 {[%clk 0:00:10.6]} 29. Rd7
{[%clk 0:00:21.3]} 29... Bf8 {[%clk 0:00:05]} 30. c7 {[%clk 0:00:19.5]} 30...
Nd6 {[%clk 0:00:05.3]} 31. Bd3 {[%clk 0:00:14.3]} 31... a5 {[%clk 0:00:04.6]}
32. Kf1 {[%clk 0:00:12.4]} 32... a4 {[%clk 0:00:03.9]} 33. Ke2 {[%clk 0:00:12]}
33... a3 {[%clk 0:00:04.4]} 34. h4 {[%clk 0:00:12.1]} 34... Ne8 {[%clk
0:00:03.7]} 35. Rd8 {[%clk 0:00:11.4]} 35... Nxc7 {[%clk 0:00:03.6]} 36. Rxa8
{[%clk 0:00:10.8]} 36... Nxa8 {[%clk 0:00:04.5]} 37. Kd2 {[%clk 0:00:11.2]}
37... Nc7 {[%clk 0:00:05.2]} 38. Kc2 {[%clk 0:00:12.1]} 38... Nd5 {[%clk
0:00:06.1]} 39. Kb3 {[%clk 0:00:11.7]} 39... Be7 {[%clk 0:00:06.8]} 40. Bc4
{[%clk 0:00:11.4]} 40... f6 {[%clk 0:00:07]} 41. Bd3 {[%clk 0:00:11.1]} 41...
Kf7 {[%clk 0:00:07.5]} 42. Bc4 {[%clk 0:00:10.7]} 42... g5 {[%clk 0:00:07.8]}
43. Bd3 {[%clk 0:00:11.6]} 43... gxh4 {[%clk 0:00:07.9]} 44. gxh4 {[%clk
0:00:12.5]} 44... f5 {[%clk 0:00:08.4]} 45. h5 {[%clk 0:00:12.6]} 45... Kf6
{[%clk 0:00:08.9]} 46. Bc4 {[%clk 0:00:11.7]} 46... Kg5 {[%clk 0:00:09.4]} 47.
Be2 {[%clk 0:00:11.8]} 47... Kf4 {[%clk 0:00:08.9]} 48. Kc4 {[%clk 0:00:11]}
48... Ke4 {[%clk 0:00:08.9]} 49. Bd1 {[%clk 0:00:08.5]} 49... Nb4 {[%clk
0:00:08.1]} 50. Kb3 {[%clk 0:00:06.5]} 50... Kxd4 {[%clk 0:00:07.5]} 51. Kxa3
{[%clk 0:00:06.7]} 51... Nd3+ {[%clk 0:00:07.2]} 52. Kb3 {[%clk 0:00:06.6]}
52... Nxf2 {[%clk 0:00:08.1]} 53. Bf3 {[%clk 0:00:06.5]} 53... Nd3 {[%clk
0:00:08]} 54. a4 {[%clk 0:00:06.1]} 54... Nc5+ {[%clk 0:00:08.6]} 55. Kb4 {[%clk
0:00:05.4]} 55... e5 {[%clk 0:00:09.2]} 56. Kb5 {[%clk 0:00:02.6]} 56... e4
{[%clk 0:00:09.3]} 57. Bd1 {[%clk 0:00:01]} 57... f4 {[%clk 0:00:09.7]} 58. a5
{[%clk 0:00:01]} 58... f3 {[%clk 0:00:09.9]} 0-1

[Event "Early-Titled-Tuesday-Blitz-May-28-2024"]
[Site "Chess.com"]
[Date "2024.05.28"]
[Round "7"]
[White "Kors67"]
[Black "frenchpin"]
[Result "1-0"]
[WhiteElo "2275"]
[BlackElo "2390"]
[TimeControl "180+1"]
[EndTime "9:19:40 PDT"]
[Termination "Kors67 won by checkmate"]

1. e4 {[%clk 0:03:00.9]} 1... e5 {[%clk 0:02:56.8]} 2. Nf3 {[%clk 0:03:00.2]}
2... Nf6 {[%clk 0:02:56.6]} 3. Nxe5 {[%clk 0:02:59.2]} 3... Nxe4 {[%clk
0:02:55.4]} 4. Qe2 {[%clk 0:02:53]} 4... Qe7 {[%clk 0:02:55.2]} 5. Qxe4 {[%clk
0:02:49.8]} 5... d6 {[%clk 0:02:55.5]} 6. d4 {[%clk 0:02:47]} 6... dxe5 {[%clk
0:02:54.7]} 7. Qxe5 {[%clk 0:02:39.9]} 7... Qxe5+ {[%clk 0:02:52.7]} 8. dxe5
{[%clk 0:02:40.1]} 8... Nc6 {[%clk 0:02:53.1]} 9. Bb5 {[%clk 0:02:33.7]} 9...
Bd7 {[%clk 0:02:51.6]} 10. Bf4 {[%clk 0:02:20.3]} 10... Nxe5 {[%clk 0:02:39.1]}
11. Bxd7+ {[%clk 0:02:19]} 11... Nxd7 {[%clk 0:02:34.2]} 12. Bxc7 {[%clk
0:02:05.9]} 12... Rc8 {[%clk 0:02:31.2]} 13. Bf4 {[%clk 0:01:30.7]} 13... Rxc2
{[%clk 0:02:29.2]} 14. Nc3 {[%clk 0:01:31.1]} 14... Bb4 {[%clk 0:02:18.8]} 15.
O-O {[%clk 0:01:30.2]} 15... O-O {[%clk 0:02:15.5]} 16. Nd5 {[%clk 0:01:19.7]}
16... Bc5 {[%clk 0:02:01.5]} 17. b4 {[%clk 0:01:15.3]} 17... Nb6 {[%clk
0:01:23.6]} 18. Nf6+ {[%clk 0:00:48.7]} 18... gxf6 {[%clk 0:01:20.7]} 19. bxc5
{[%clk 0:00:49.2]} 19... Nd7 {[%clk 0:01:07.7]} 20. Bd6 {[%clk 0:00:27.3]} 20...
Re8 {[%clk 0:01:04.7]} 21. Rab1 {[%clk 0:00:26.4]} 21... b6 {[%clk 0:00:55.4]}
22. cxb6 {[%clk 0:00:25.4]} 22... Nxb6 {[%clk 0:00:46.6]} 23. a3 {[%clk
0:00:08.8]} 23... Nc4 {[%clk 0:00:44.9]} 24. Bb4 {[%clk 0:00:09]} 24... a5
{[%clk 0:00:43.5]} 25. Rfe1 {[%clk 0:00:09.2]} 25... Rxe1+ {[%clk 0:00:28.8]}
26. Bxe1 {[%clk 0:00:08.8]} 26... Nxa3 {[%clk 0:00:28.4]} 27. Ra1 {[%clk
0:00:09]} 27... Nc4 {[%clk 0:00:26.9]} 28. g3 {[%clk 0:00:09.4]} 28... Kg7
{[%clk 0:00:12.6]} 29. Bxa5 {[%clk 0:00:08.1]} 29... Ne5 {[%clk 0:00:13.1]} 30.
Kg2 {[%clk 0:00:07.3]} 30... Nd3 {[%clk 0:00:12.4]} 31. Bb6 {[%clk 0:00:07.4]}
31... Rb2 {[%clk 0:00:10.3]} 32. Bd4 {[%clk 0:00:06.7]} 32... Rb4 {[%clk
0:00:07.7]} 33. Be3 {[%clk 0:00:06.7]} 33... Ne5 {[%clk 0:00:06.7]} 34. h3
{[%clk 0:00:06]} 34... Nc4 {[%clk 0:00:06.1]} 35. Bf4 {[%clk 0:00:04.9]} 35...
Ne5 {[%clk 0:00:05.2]} 36. Ra5 {[%clk 0:00:04.3]} 36... Nd3 {[%clk 0:00:03.9]}
37. Be3 {[%clk 0:00:03.9]} 37... Rb3 {[%clk 0:00:03.2]} 38. Kf1 {[%clk
0:00:03.7]} 38... Ne5 {[%clk 0:00:03.1]} 39. Bd4 {[%clk 0:00:03.1]} 39... Ng6
{[%clk 0:00:02]} 40. Ra6 {[%clk 0:00:02.3]} 40... Rf3 {[%clk 0:00:02.6]} 41. Kg2
{[%clk 0:00:02.2]} 41... Rf5 {[%clk 0:00:02.7]} 42. g4 {[%clk 0:00:02.4]} 42...
Rf4 {[%clk 0:00:02.7]} 43. Rd6 {[%clk 0:00:02.1]} 43... h6 {[%clk 0:00:01.5]}
44. Kg3 {[%clk 0:00:01.4]} 44... Re4 {[%clk 0:00:01]} 45. Bxf6+ {[%clk 0:00:01]}
45... Kh7 {[%clk 0:00:01.5]} 46. Bd4 {[%clk 0:00:01.5]} 46... Re6 {[%clk
0:00:01.6]} 47. Rd8 {[%clk 0:00:01]} 47... Re7 {[%clk 0:00:01.6]} 48. Rd6 {[%clk
0:00:01.1]} 48... Re6 {[%clk 0:00:01.8]} 49. Rxe6 {[%clk 0:00:01.3]} 49... fxe6
{[%clk 0:00:01.6]} 50. f4 {[%clk 0:00:02.2]} 50... Kg8 {[%clk 0:00:01.7]} 51.
Be5 {[%clk 0:00:02.6]} 51... Kf7 {[%clk 0:00:01.9]} 52. h4 {[%clk 0:00:03.4]}
52... Ne7 {[%clk 0:00:01.7]} 53. h5 {[%clk 0:00:04.3]} 53... Nc6 {[%clk
0:00:02.3]} 54. Kf3 {[%clk 0:00:04.6]} 54... Ne7 {[%clk 0:00:02.8]} 55. Ke4
{[%clk 0:00:05.4]} 55... Nc6 {[%clk 0:00:02.3]} 56. g5 {[%clk 0:00:05.5]} 56...
hxg5 {[%clk 0:00:01.1]} 57. fxg5 {[%clk 0:00:05.4]} 57... Ne7 {[%clk 0:00:01.7]}
58. Kf4 {[%clk 0:00:04.6]} 58... Nd5+ {[%clk 0:00:01.4]} 59. Ke4 {[%clk
0:00:04.9]} 59... Ne7 {[%clk 0:00:01.6]} 60. Bf6 {[%clk 0:00:05.5]} 60... Nf5
{[%clk 0:00:01.6]} 61. Ke5 {[%clk 0:00:04.2]} 61... Ng3 {[%clk 0:00:01.6]} 62.
g6+ {[%clk 0:00:04.4]} 62... Kg8 {[%clk 0:00:01.3]} 63. h6 {[%clk 0:00:04.9]}
63... Nf5 {[%clk 0:00:01.2]} 64. h7+ {[%clk 0:00:05.2]} 64... Kf8 {[%clk
0:00:01.2]} 65. h8=Q# {[%clk 0:00:06.1]} 1-0

[Event "Early-Titled-Tuesday-Blitz-May-28-2024"]
[Site "Chess.com"]
[Date "2024.05.28"]
[Round "7"]
[White "the_chess_child"]
[Black "AljoschaFeuerstack"]
[Result "1-0"]
[WhiteElo "2894"]
[BlackElo "2652"]
[TimeControl "180+1"]
[EndTime "9:19:47 PDT"]
[Termination "the_chess_child won by resignation"]

1. e4 {[%clk 0:03:00.9]} 1... c6 {[%clk 0:02:58.2]} 2. d3 {[%clk 0:03:00.5]}
2... d5 {[%clk 0:02:59.1]} 3. Nd2 {[%clk 0:03:00.7]} 3... e5 {[%clk 0:02:55.7]}
4. Ngf3 {[%clk 0:03:00.6]} 4... Bd6 {[%clk 0:02:55.3]} 5. d4 {[%clk 0:03:01]}
5... exd4 {[%clk 0:02:51.4]} 6. exd5 {[%clk 0:03:01.2]} 6... Nf6 {[%clk
0:02:51]} 7. dxc6 {[%clk 0:03:01.1]} 7... Nxc6 {[%clk 0:02:50.7]} 8. Be2 {[%clk
0:03:01.5]} 8... O-O {[%clk 0:02:50.6]} 9. Nb3 {[%clk 0:03:01.7]} 9... Bb4+
{[%clk 0:02:22.9]} 10. Bd2 {[%clk 0:03:01.3]} 10... Be7 {[%clk 0:02:23]} 11. O-O
{[%clk 0:02:59.2]} 11... Qb6 {[%clk 0:02:16.6]} 12. Bg5 {[%clk 0:02:48.9]} 12...
Rd8 {[%clk 0:02:16.5]} 13. h3 {[%clk 0:02:46.2]} 13... Be6 {[%clk 0:02:15.6]}
14. Re1 {[%clk 0:02:27.8]} 14... a5 {[%clk 0:02:09.2]} 15. a4 {[%clk 0:02:25.3]}
15... h6 {[%clk 0:01:55.9]} 16. Bxf6 {[%clk 0:02:02.5]} 16... Bxf6 {[%clk
0:01:56.8]} 17. Bb5 {[%clk 0:02:02.6]} 17... Nb4 {[%clk 0:01:44.6]} 18. Nc1
{[%clk 0:01:42.5]} 18... Rac8 {[%clk 0:01:39.9]} 19. Re2 {[%clk 0:01:42.1]}
19... d3 {[%clk 0:01:03.3]} 20. Nxd3 {[%clk 0:01:20.1]} 20... Bxb2 {[%clk
0:01:02.7]} 21. Rb1 {[%clk 0:01:18.9]} 21... Bc3 {[%clk 0:01:02.9]} 22. Qc1
{[%clk 0:01:15.6]} 22... Ba2 {[%clk 0:01:01.3]} 23. Rxb4 {[%clk 0:00:43.9]}
23... axb4 {[%clk 0:01:00.6]} 24. Qf4 {[%clk 0:00:39.9]} 24... Qf6 {[%clk
0:00:52.8]} 25. Qe3 {[%clk 0:00:27.8]} 25... Bd5 {[%clk 0:00:49.2]} 26. Nh2
{[%clk 0:00:24.4]} 26... Bd4 {[%clk 0:00:48.7]} 27. Qg3 {[%clk 0:00:22.8]} 27...
b3 {[%clk 0:00:43.2]} 28. Ng4 {[%clk 0:00:22.1]} 28... Qg6 {[%clk 0:00:31]} 29.
cxb3 {[%clk 0:00:19.8]} 29... Rc3 {[%clk 0:00:28.6]} 30. Qh4 {[%clk 0:00:19.2]}
30... Rdc8 {[%clk 0:00:27.4]} 31. Nf4 {[%clk 0:00:18.6]} 31... Qf5 {[%clk
0:00:23.9]} 32. Nxd5 {[%clk 0:00:14.8]} 32... Qxd5 {[%clk 0:00:24.6]} 33. Bc4
{[%clk 0:00:15.3]} 33... Rc1+ {[%clk 0:00:20.2]} 34. Kh2 {[%clk 0:00:15]} 34...
Qd6+ {[%clk 0:00:20.8]} 35. Qg3 {[%clk 0:00:13.4]} 35... Qxg3+ {[%clk 0:00:21]}
36. Kxg3 {[%clk 0:00:14.3]} 36... Rc3+ {[%clk 0:00:20.3]} 37. Kh2 {[%clk
0:00:13.8]} 37... Rc7 {[%clk 0:00:19.1]} 38. Re8+ {[%clk 0:00:11.8]} 38... Kh7
{[%clk 0:00:18.9]} 39. Re4 {[%clk 0:00:12.5]} 39... Bc5 {[%clk 0:00:18.4]} 40.
Ne5 {[%clk 0:00:12.6]} 40... Bd6 {[%clk 0:00:18.5]} 41. f4 {[%clk 0:00:13.1]}
41... f6 {[%clk 0:00:17.4]} 42. Nf3 {[%clk 0:00:13.2]} 42... Rc2 {[%clk
0:00:16.3]} 43. Bd3 {[%clk 0:00:12.8]} 43... R2c6 {[%clk 0:00:11.3]} 44. Re8+
{[%clk 0:00:12]} 44... g6 {[%clk 0:00:11.3]} 45. Re4 {[%clk 0:00:11.4]} 45... f5
{[%clk 0:00:10.2]} 46. Rd4 {[%clk 0:00:11.8]} 46... Kg7 {[%clk 0:00:10.8]} 47.
g3 {[%clk 0:00:11.8]} 47... Bc5 {[%clk 0:00:11]} 48. Rd5 {[%clk 0:00:11.7]}
48... Rd6 {[%clk 0:00:11.6]} 49. Rxd6 {[%clk 0:00:11.4]} 49... Bxd6 {[%clk
0:00:12.5]} 50. Bc4 {[%clk 0:00:12.1]} 50... Re7 {[%clk 0:00:12.7]} 51. Nd4
{[%clk 0:00:12]} 51... Re3 {[%clk 0:00:12.2]} 52. Kg2 {[%clk 0:00:12.5]} 52...
Kf6 {[%clk 0:00:11.4]} 53. Nb5 {[%clk 0:00:12.6]} 53... Bc5 {[%clk 0:00:11.4]}
54. Nc7 {[%clk 0:00:13]} 54... Kg7 {[%clk 0:00:09.5]} 55. Ne6+ {[%clk
0:00:12.7]} 55... Rxe6 {[%clk 0:00:10]} 56. Bxe6 {[%clk 0:00:13.5]} 56... Kf6
{[%clk 0:00:10.7]} 57. Bc4 {[%clk 0:00:14.2]} 57... b6 {[%clk 0:00:11.6]} 58.
Kf3 {[%clk 0:00:15]} 58... g5 {[%clk 0:00:12.4]} 59. g4 {[%clk 0:00:14.9]} 59...
fxg4+ {[%clk 0:00:12]} 60. hxg4 {[%clk 0:00:14.6]} 60... Bd6 {[%clk 0:00:12.9]}
61. f5 {[%clk 0:00:15.1]} 61... Bc5 {[%clk 0:00:13.3]} 62. Ke4 {[%clk
0:00:15.5]} 62... Bg1 {[%clk 0:00:13.4]} 63. Bd3 {[%clk 0:00:16.1]} 63... Bc5
{[%clk 0:00:13.6]} 64. Kd5 {[%clk 0:00:16.6]} 64... Ke7 {[%clk 0:00:12.1]} 65.
Kc6 {[%clk 0:00:16.7]} 65... Be3 {[%clk 0:00:11.4]} 66. b4 {[%clk 0:00:16.1]}
66... Kf6 {[%clk 0:00:07.7]} 67. a5 {[%clk 0:00:15.9]} 67... bxa5 {[%clk
0:00:07.2]} 68. bxa5 {[%clk 0:00:16.8]} 68... h5 {[%clk 0:00:07.7]} 69. gxh5
{[%clk 0:00:16.2]} 69... g4 {[%clk 0:00:08.6]} 70. h6 {[%clk 0:00:15.1]} 70...
g3 {[%clk 0:00:08.8]} 71. h7 {[%clk 0:00:14.8]} 71... Kg7 {[%clk 0:00:08.3]} 72.
f6+ {[%clk 0:00:15.3]} 72... Kh8 {[%clk 0:00:08.7]} 73. f7 {[%clk 0:00:15.9]}
73... Bh6 {[%clk 0:00:09.2]} 74. Be4 {[%clk 0:00:16.2]} 74... g2 {[%clk
0:00:09.5]} 75. Bxg2 {[%clk 0:00:15.9]} 75... Kxh7 {[%clk 0:00:10.4]} 76. Bd5
{[%clk 0:00:16.5]} 76... Kg7 {[%clk 0:00:10.8]} 77. a6 {[%clk 0:00:17.1]} 77...
Be3 {[%clk 0:00:11.6]} 78. Kb7 {[%clk 0:00:17.6]} 78... Kf8 {[%clk 0:00:12.1]}
79. a7 {[%clk 0:00:18.1]} 79... Bxa7 {[%clk 0:00:12.4]} 80. Kxa7 {[%clk
0:00:19]} 80... Ke7 {[%clk 0:00:13]} 81. Kb7 {[%clk 0:00:19.9]} 1-0